Cogmind - Beta 15 @@@ ROGUE MODE // 2025.08.16 @ 23:51:19 Player: Cracklepappy Result: Core destroyed Performance ------------- Evolutions (4) 2000 Regions Visited (13) 2600 Robots Destroyed (213) 1065 Value Destroyed (8449) 8449 Prototype IDs (39) 780 Alien Tech Used (0) 0 Bonus (4887) 4887 TOTAL SCORE: 19781 Bonus ------- High Alert Combat Kills 1242 Follower Combat Kills 1468 Entered Garrisons 400 Network Hubs Disabled 400 Registered with UFD 300 Met Optimus in HQ 500 Met Zhirov 300 Met R17 at Cetus 500 Friendly Fire -223 Cogmind --------- Core Integrity 0/850 Matter 93/300 Energy 116/350 System Corruption 41% Temperature Critical (676) Movement Core (3050) Ox60 Location -6/Garrison Parts ------- > --- POWER (1) -------- Quantum Reactor > --- PROPULSION (4) --- (None) > --- UTILITY (5) ------ Improved Cryofiber Web Advanced Heat Sink Improved Cooling System Cargo Storage Unit > --- WEAPON (5) ------- Gatling Laser Gatling Laser Heavy Plasma Cannon > --- INVENTORY (30) --- Wheel Overtuned Huge Scrapsphere IFF Parser Experimental Terrain Scan Processor Centrium Medium Armor Plating Centrium Medium Armor Plating Authchip [Propulsion] Authchip [Weapon] Authchip [Weapon] Relay Coupler [NC] (34) High-powered Tractor Beam Heavy Laser Overtuned Railgun Remote Datajack Plasma Cutter CPS Tube (2) CPS Tube (1) Phasing Sabre Peak State ------------ > --- POWER ------------ Improved Deuterium Engine > --- PROPULSION ------- Armored Wheel Armored Wheel Armored Wheel Armored Wheel > --- UTILITY ---------- Improved Cooling System Cargo Storage Unit Centrium Medium Armor Plating Centrium Medium Armor Plating > --- WEAPON ----------- Advanced KE Penetrator Advanced KE Penetrator Advanced KE Penetrator Advanced KE Penetrator Advanced KE Penetrator > --- INVENTORY -------- Quantum Reactor Quantum Reactor Wheel Overtuned Huge Scrapsphere Improved Cryofiber Web Advanced Heat Sink High-capacity Matter Pod IFF Parser Experimental Terrain Scan Processor Authchip [Propulsion] Authchip [Weapon] Authchip [Weapon] Relay Coupler [NC] High-powered Tractor Beam Gatling Laser Gatling Laser Gatling Laser Gatling Laser Phase Cannon Heavy Plasma Cannon Flak Gun Overtuned Railgun Remote Datajack Plasma Cutter CPS Tube CPS Tube Phasing Sabre [Rating: 88] Favorites ----------- Power Cooled Ion Engine Engine Cooled Ion Engine Power Core Fission Core Reactor Quantum Reactor Propulsion Armored Wheel Wheel Armored Wheel Utility Huge Storage Unit Device Cooling System Storage Huge Storage Unit Processor Machine Analyzer Hackware Hacking Suite Protection Centrium Medium Armor Plating Weapon Heavy Assault Rifle Energy Gun Gatling Laser Energy Cannon Light EM Pulse Cannon Ballistic Gun Heavy Assault Rifle Ballistic Cannon Gauss Cannon Launcher Advanced EMP Blaster Special Weapon Mining Laser Impact Weapon Makeshift Hammer Slashing Weapon Phasing Sabre Special Melee Weapon Improved Datajack Build | -11 -10 -10 -9 -9 -9 -9 -9 -6 -6 -6 -6 -6 -6 ------- Run | Yrd Mat Min Mat Sto Gar Rec Scr Fac Ext Cet Arc Hub Gar Slots Evolved 8 | . . . 2 . . . . 6 . . . . . Power . | . . . . . . . . . . . . . . Propulsion 2 | . . . . . . . . 2 . . . . . Utility 3 | . . . . . . . . 3 . . . . . Weapon 3 | . . . 2 . . . . 1 . . . . . Parts Attached 160 | 7 23 8 15 18 5 . 7 15 24 12 . 14 12 Power 19 | 1 4 1 2 1 . . 1 1 5 . . 1 2 Engine 15 | 1 4 1 2 1 . . 1 . 4 . . 1 . Core 2 | . . . . . . . . 1 1 . . . . Reactor 2 | . . . . . . . . . . . . . 2 Propulsion 29 | 2 4 . 2 4 . . 2 2 5 2 . 1 5 Treads . | . . . . . . . . . . . . . . Leg . | . . . . . . . . . . . . . . Wheel 29 | 2 4 . 2 4 . . 2 2 5 2 . 1 5 Hover . | . . . . . . . . . . . . . . Flight . | . . . . . . . . . . . . . . Utility 35 | 2 6 2 4 . 1 . . 5 3 3 . 7 2 Device 20 | 1 2 2 4 . . . . 2 2 2 . 4 1 Storage 5 | 1 3 . . . . . . 1 . . . . . Processor 3 | . 1 . . . 1 . . 1 . . . . . Hackware 3 | . . . . . . . . 1 1 . . 1 . Protection 4 | . . . . . . . . . . 1 . 2 1 Artifact . | . . . . . . . . . . . . . . Weapon 77 | 2 9 5 7 13 4 . 4 7 11 7 . 5 3 Energy Gun 7 | . 1 . . . . . 1 . . 4 . . 1 Energy Cannon 16 | . 5 1 2 5 . . . . . 1 . 1 1 Ballistic Gun 35 | 2 . 2 3 5 3 . 2 5 7 1 . 4 1 Ballistic Cannon 4 | . . . 2 . . . . 1 1 . . . . Launcher 5 | . 1 1 . . 1 . . 1 1 . . . . Special Weapon 6 | . 2 . . 1 . . 1 . 2 . . . . Impact Weapon 1 | . . . . 1 . . . . . . . . . Slashing Weapon 1 | . . . . . . . . . . 1 . . . Piercing Weapon . | . . . . . . . . . . . . . . Special Melee Weapon 2 | . . 1 . 1 . . . . . . . . . Unidentified Prototypes 9 | . . . 2 3 . . 1 1 . 2 . . . Corrupted Parts 9 | . . 3 . . . . . . . . . 4 2 System Corruption 45 | . . 6 . . . . . . . . . 21 18 Parts Lost 30 | . 8 1 . . . . . . 4 1 . 1 15 Power 4 | . 2 . . . . . . . . . . . 2 Propulsion 10 | . 2 . . . . . . . 2 1 . 1 4 Utility 2 | . 1 . . . . . . . 1 . . . . Weapon 14 | . 3 1 . . . . . . 1 . . . 9 Highest Loss Streak 15 | . 3 1 . . . . . . 2 1 . 1 15 To Critical Strikes 1 | . 1 . . . . . . . . . . . . Average Backups 24 | 3 20 24 24 23 23 24 23 27 28 28 29 28 28 Power . | . . . . 1 1 1 . . 1 1 2 2 1 Propulsion 2 | 1 2 2 1 1 2 2 2 3 2 2 1 1 2 Utility 10 | . 9 13 10 9 12 12 10 9 9 12 14 12 11 Weapon 8 | . 6 8 9 9 6 7 7 9 12 9 8 8 9 Tool/Special . | . . . . . . . . . . . . . . Unused Backups 64 | 1 2 6 8 16 . . 4 5 5 4 2 1 10 Power 6 | . . . . 2 . . . 2 . 2 . . . Propulsion 4 | 1 . . . 2 . . . . . . . . 1 Utility 24 | . 2 3 3 1 . . 4 1 . 2 2 . 6 Weapon 28 | . . 3 5 10 . . . 2 5 . . 1 2 Tool/Special 2 | . . . . 1 . . . . . . . . 1 Average Slot Usage (%) 97 | . 97 99 99 100 100 100 99 91 92 92 93 92 90 Engine 9 | . 13 14 11 11 11 11 11 2 5 . . . 5 Wheel 24 | . 27 28 22 22 22 22 22 25 25 26 26 25 23 Device 10 | . 10 13 11 11 11 11 11 10 10 6 6 6 1 Storage 10 | . 14 14 11 11 11 11 11 6 6 6 6 6 6 Processor 1 | . 1 . . . . . . 4 6 6 6 6 4 Energy Gun 3 | . 2 . . . . . 2 . . 7 27 24 . Energy Cannon 8 | . 16 25 20 10 11 11 . . 1 8 . . 1 Ballistic Gun 22 | . 4 1 11 31 32 33 34 27 24 5 . 5 27 Ballistic Cannon 1 | . . . 11 1 . . . 3 4 . . . . Special Melee Weapon 1 | . . . . . . . 6 . . . . . . Peak Build Rating 88 | 7 14 18 24 32 32 29 32 51 57 71 69 81 88 Average Rating 33 | 5 10 15 20 27 29 29 26 45 53 63 67 67 79 On Entrance 35 | . 7 14 17 21 30 29 29 29 49 53 67 68 81 Naked Turns . | . . . . . . . . . . . . . . Heaviest Build 189 | 12 129 98 105 104 103 103 103 171 177 185 178 189 187 Greatest Support 50 | 20 20 20 26 26 24 24 24 48 48 48 48 48 50 Greatest Overweight (x) 8 | . 8 4 5 5 4 4 4 3 4 4 3 4 4 Average Overweight (x) 3 | . 2 4 3 3 4 4 3 2 3 3 3 3 3 Largest Inventory Capacity 30 | 8 25 25 25 25 25 25 25 30 30 30 30 30 30 Average Capacity 25 | 7 22 25 25 25 25 25 25 29 30 30 30 30 30 Most Carried 30 | 8 25 25 25 25 25 25 25 30 30 30 30 30 30 Average Carried 25 | 4 20 24 24 24 24 25 24 28 29 29 29 29 28 Final Capacity 30 | 8 25 25 25 25 25 25 25 30 30 30 30 30 30 Final Carried 30 | 8 25 25 25 25 25 25 25 30 30 30 30 30 19 Class Distribution -------------------- 49% | Gunner 19% | Mutant 10% | Scavenger-Tank 7% | Commander-Skirmisher 5% | Hauler-Skirmisher 3% | Commander-Gunner Dominant Class ---------------- Mutant | -10/Materials Mutant | -10/Mines Gunner | -9/Materials Gunner | -9/Storage Gunner | -9/Garrison Gunner | -9/Recycling Gunner | -9/Scraptown Hauler-Skirmisher | -6/Factory Commander-Skirmisher | -6/Extension Commander-Tank | -6/Cetus Scavenger-Tank | -6/Archives Scavenger-Tank | -6/Hub_04(d) Scavenger-Tank | -6/Garrison Resources | -11 -10 -10 -9 -9 -9 -9 -9 -6 -6 -6 -6 -6 -6 ----------- Run | Yrd Mat Min Mat Sto Gar Rec Scr Fac Ext Cet Arc Hub Gar Matter Collected 7292 | 370 679 265 520 840 402 95 71 1076 1510 271 41 581 571 Remotely 137 | . . . . . . . . . . . . 137 . Salvage Created 9458 | 230 632 141 820 1395 739 296 . 1076 1239 430 67 1486 907 Parts 484 | 19 44 7 44 86 53 16 . 49 58 17 5 59 27 Haulers Intercepted 12 | . 2 . 2 6 . . . 1 . . . 1 . Recyclers Shooed 7 | . . . 1 1 . 2 . 1 1 . . 1 . Parts Field Recycled . | . . . . . . . . . . . . . . Retrieved Matter . | . . . . . . . . . . . . . . Parts Self-Destructed . | . . . . . . . . . . . . . . Prevented . | . . . . . . . . . . . . . . Kills | -11 -10 -10 -9 -9 -9 -9 -9 -6 -6 -6 -6 -6 -6 ------- Run | Yrd Mat Min Mat Sto Gar Rec Scr Fac Ext Cet Arc Hub Gar Combat Hostiles Destroyed 143 | . 16 5 11 19 21 2 . 10 19 5 . 21 14 Guns 92 | . 2 . 5 13 12 1 . 9 16 . . 21 13 Cannons 31 | . 4 3 6 6 6 1 . 1 3 . . . 1 AOE 14 | . 10 1 . . 3 . . . . . . . . Classes Destroyed 18 | 3 6 . 3 2 1 . . 1 1 . . 1 . Worker 14 | 2 1 . . 4 . . . 2 2 . . 3 . Builder 11 | . 1 . . 2 . . . 4 4 . . . . Tunneler 6 | 5 1 . . . . . . . . . . . . Hauler 12 | . 2 . 2 6 . . . 1 . . . 1 . Recycler 11 | 1 1 . 3 1 . 1 . 2 1 . . 1 . Mechanic 2 | . . . . 1 . . . 1 . . . . . Operator 3 | . . . 2 . . . . . 1 . . . . Watcher 8 | . 1 . 1 1 . . . 1 . 2 . 2 . Swarmer 30 | . 6 3 2 2 7 1 . . 3 . . 3 3 Grunt 50 | . 7 2 3 5 9 . . 4 7 . . 8 5 Brawler 5 | . . . . 2 . . . 1 1 . . . 1 Duelist 4 | . . . 1 1 . . . 1 . . . . 1 Sentry 32 | . . . 5 9 3 2 . 2 4 . . 6 1 Hunter 5 | . . . . . . . . 1 3 . . 1 . Programmer 7 | . . . . . 2 . . 1 . . . 2 2 Heavy 1 | . . . . . . . . . . . . 1 . Behemoth 2 | . . . . . . . . . 1 . . . 1 Cetus Guard 5 | . . . . . . . . . . 5 . . . Subdweller 3 | . 3 . . . . . . . . . . . . Thug 1 | . . . 1 . . . . . . . . . . Butcher 1 | . . . . . . . . . 1 . . . . Best Kill Streak 11 | 4 6 3 4 6 6 2 . 11 11 4 . 6 5 Combat Bots Only 8 | . 5 3 3 4 6 1 . 3 8 3 . 6 5 Max Kills in Single Turn 3 | 1 2 1 2 2 2 1 . 3 3 2 . 2 2 Gunslinging 1 | . . . . . 1 . . . . . . 1 1 Exploded 2 | . 2 1 . . 2 . . . . . . . . Melee . | . . . . . . . . . . . . . . Uniques/NPCs Destroyed . | . . . . . . . . . . . . . . Combat | -11 -10 -10 -9 -9 -9 -9 -9 -6 -6 -6 -6 -6 -6 -------- Run | Yrd Mat Min Mat Sto Gar Rec Scr Fac Ext Cet Arc Hub Gar Hostile Shots Fired 903 | . 67 26 41 52 45 2 . 94 168 15 . 149 244 Missed 274 | . 13 5 14 18 14 . . 35 50 6 . 56 63 Hits 629 | . 54 21 27 34 31 2 . 59 118 9 . 93 181 Melee 6 | . . . 3 . . . . . . . . . 3 Projectile 623 | . 54 21 24 34 31 2 . 59 118 9 . 93 178 AOE 4 | . 3 . . 1 . . . . . . . . . Critical Strikes 20 | . 1 1 2 3 . . . 1 4 1 . 4 3 Damage Taken 9320 | . 918 183 402 642 380 32 . 623 1573 279 . 1309 2979 Core 1406 | . 176 34 78 107 46 . . 47 172 58 . 199 489 Absorbed by Shields 14 | . . . . 8 . . . . 6 . . . . Regen/Repaired (Parts) 316 | . 70 . . . . . 246 . . . . . . Core Remaining (%) 52 | 100 . 16 . . . . 42 . . . . . . Volleys Fired 486 | 25 39 11 34 72 53 10 . 42 72 10 5 40 73 Largest 5 | 2 2 2 4 4 4 4 . 5 5 3 1 5 5 Hottest 415 | 40 112 112 205 159 159 159 . 182 202 141 5 400 415 Shots Fired 1522 | 50 66 18 133 258 133 34 . 206 243 20 5 168 188 Gun 1052 | 50 24 . 35 180 83 24 . 180 172 4 . 160 140 Cannon 373 | . 28 18 98 78 47 10 . 26 42 4 . 8 14 Launcher 27 | . 12 . . . 3 . . . . 12 . . . Special 70 | . 2 . . . . . . . 29 . 5 . 34 Kinetic 1030 | 50 15 . 70 186 83 24 . 205 197 4 . 71 125 Thermal 397 | . 20 3 63 72 47 10 . 1 17 4 . 97 63 Explosive 15 | . 12 . . . 3 . . . . . . . . Electromagnetic 46 | . 19 15 . . . . . . . 12 . . . Robot Hit Streak 31 | 7 21 5 7 31 12 4 . 10 15 4 4 11 13 Robot Miss Streak 21 | 3 2 2 5 3 2 5 . 5 21 2 1 5 8 Penetration Max 1 | . . . . . . . . 1 1 . . 1 1 Secondary Targets 12 | . . . . . 1 . . 2 . . . 5 4 Max Gunslinging Chain 1 | . . . . . 1 . . 1 . . . 1 1 Shots Hit Robots 893 | 29 38 10 62 158 65 16 2 115 163 6 7 102 120 Core Hits 477 | 10 31 5 27 50 27 8 . 46 124 20 1 75 53 Critical Kills 7 | . . . . . 1 . . . . . . 4 2 Critical Parts Destroyed 15 | . . . . . . . . . 1 . . 7 7 Critical Strikes 29 | . . . . . 1 . . 2 2 . . 11 13 Destroy 23 | . . . . . 1 . . . 1 . . 11 10 Blast 3 | . . . . . . . . 2 1 . . . . Sever 3 | . . . . . . . . . . . . . 3 Melee Attacks 42 | . . . . 4 5 . 2 1 . 11 5 4 10 Impact 8 | . . . . 3 5 . . . . . . . . Slashing 30 | . . . . . . . . . . 11 5 4 10 Piercing . | . . . . . . . . . . . . . . Sneak Attacks 5 | . . . . 1 . . 2 1 . . . 1 . Combat Hostiles . | . . . . . . . . . . . . . . Follow-up Attacks . | . . . . . . . . . . . . . . Damage Inflicted 20621 | 332 1346 347 1241 2863 1561 370 . 1956 3183 1097 288 3147 2890 Guns 12956 | 332 223 . 383 1829 774 201 . 1630 2604 39 . 2669 2272 Cannons 4596 | . 351 235 858 1034 575 169 . 326 579 54 . 117 298 Explosions 2387 | . 772 112 . . 212 . . . . 1004 . 287 . Melee 362 | . . . . . . . . . . . 288 74 . Ramming . | . . . . . . . . . . . . . . Kinetic 12106 | 332 160 . 650 1920 774 201 . 1956 2903 39 . 1131 2040 Thermal 5696 | . 318 130 591 943 575 169 . . 280 185 . 1655 850 Explosive 877 | . 665 . . . 212 . . . . . . . . Electromagnetic 1580 | . 203 217 . . . . . . . 873 . 287 . Impact . | . . . . . . . . . . . . . . Slashing 362 | . . . . . . . . . . . 288 74 . Piercing . | . . . . . . . . . . . . . . Highest Corruption 41 | . . 6 . . 2 2 . 1 1 1 1 19 41 Average Corruption 3 | . . 3 . . 1 2 . 1 1 1 1 7 20 Corruption Purged 6 | . . . . . . . . . . . . 6 . Corruption Blocked . | . . . . . . . . . . . . . . Effects 90 | . . 1 . . 6 15 . 5 14 1 1 15 32 Message Errors 14 | . . . . . 1 4 . 1 1 . . 4 3 Matter Fused 16 | . . 1 . . 1 2 . . 6 . . 4 2 Heat Flow Errors 9 | . . . . . . 2 . 1 . . . . 6 Energy Discharges 12 | . . . . . 1 1 . . 2 1 . 2 5 Parts Fused 1 | . . . . . . . . . . . . . 1 Data Loss (minor) 15 | . . . . . 2 2 . 3 1 . 1 1 5 Data Loss (major) 5 | . . . . . . 2 . . . . . 2 1 Misfires 5 | . . . . . 1 2 . . 1 . . 1 . Alerts 1 | . . . . . . . . . 1 . . . . Weapon Failures 12 | . . . . . . . . . 2 . . 1 9 Overload Shots . | . . . . . . . . . . . . . . Overflow Damage 207 | . 24 8 7 2 . . . . . 23 103 40 . Projectiles 17 | . . 8 7 2 . . . . . . . . . Explosions 53 | . 24 . . . . . . . . 23 . 6 . Melee 137 | . . . . . . . . . . . 103 34 . Knockbacks 4 | . . . 1 . . . . 1 2 . . . . Impact . | . . . . . . . . . . . . . . Kinetic 4 | . . . 1 . . . . 1 2 . . . . Secondary . | . . . . . . . . . . . . . . Self-Inflicted Damage 228 | . 133 . . . . . . . . 9 . 86 . Shots 6 | . 4 . . . . . . . . 1 . 1 . Rammed . | . . . . . . . . . . . . . . Targets Rammed . | . . . . . . . . . . . . . . Kicked . | . . . . . . . . . . . . . . Crushed . | . . . . . . . . . . . . . . Highest Temperature 769 | . 184 190 199 48 323 234 . 195 208 . . 377 769 Average Temperature 97 | . 48 93 106 14 57 68 . 66 48 . . 105 199 Received Heat Transfer 2419 | . 192 15 138 240 105 9 . 153 478 . . 393 696 Effects 19 | . . . . . 3 . . . . . . . 16 Shutdowns 2 | . . . . . . . . . . . . . 2 Energy Bleed 1 | . . . . . . . . . . . . . 1 Interference 10 | . . . . . 3 . . . . . . . 7 Matter Decay 1 | . . . . . . . . . . . . . 1 Damage (minor) 2 | . . . . . . . . . . . . . 2 Damage (major) 1 | . . . . . . . . . . . . . 1 Damage (core) 2 | . . . . . . . . . . . . . 2 Siege Activations . | . . . . . . . . . . . . . . Martial Activations . | . . . . . . . . . . . . . . Shielding Activations . | . . . . . . . . . . . . . . Robots Disrupted . | . . . . . . . . . . . . . . Combat Hostiles . | . . . . . . . . . . . . . . Robots Corrupted 6 | . . 1 . . . . . . . 5 . . . Combat Hostiles 6 | . . 1 . . . . . . . 5 . . . Parts Fried 5 | . . 2 . . . . . . . 3 . . . Impact Corruptions . | . . . . . . . . . . . . . . Robots Melted . | . . . . . . . . . . . . . . Combat Hostiles . | . . . . . . . . . . . . . . Parts Melted 23 | . 1 . 5 2 . . . . . . . 15 . Heat Transferred 10382 | . 544 137 1184 1591 740 222 . . 370 324 . 3513 1757 Parts Sabotaged . | . . . . . . . . . . . . . . Parts Stolen . | . . . . . . . . . . . . . . Parts Stripped . | . . . . . . . . . . . . . . Power Chain Reactions 5 | . 2 1 . . . . . . . 2 . . . Alert | -11 -10 -10 -9 -9 -9 -9 -9 -6 -6 -6 -6 -6 -6 ------- Run | Yrd Mat Min Mat Sto Gar Rec Scr Fac Ext Cet Arc Hub Gar Maximum Alert Level 4 | . . . . 2 4 2 . . 4 3 1 2 3 Low Security (%) 56 | 100 100 100 100 29 . . . 100 62 . . 82 . Level 1 13 | . . . . 63 5 . . . 12 . 100 . . Level 2 17 | . . . . 7 28 100 . . 16 . . 16 78 Level 3 9 | . . . . . 43 . . . 3 100 . . 21 Level 4 3 | . . . . . 23 . . . 5 . . . . Level 5 . | . . . . . . . . . . . . . . High Security . | . . . . . . . . . . . . . . Max Security . | . . . . . . . . . . . . . . Peak Influence 1426 | 5 168 79 129 425 1351 607 . 181 1426 944 350 639 762 Initial 791 | . 3 . . 49 272 607 . . 21 791 350 88 451 Average 279 | 2 33 10 37 232 875 493 . 84 290 867 302 142 580 Influence Increases 8013 | 40 472 155 420 1209 1139 254 . 358 2026 373 33 1123 411 Destroy 0b10 Robot/C 3640 | . 260 100 220 600 500 60 . 200 780 160 . 480 280 Destroy 0b10 Robot/NC 390 | 40 35 . 40 75 5 10 . 55 55 10 10 45 10 Destroy Leader 746 | . 56 20 86 194 20 . . 62 102 . . 166 40 Allied During Kill 1270 | . . . . 192 19 8 . . 862 142 8 39 . Successful Hack 276 | . 45 . 41 46 35 21 . . 34 . . 54 . Select Force Hacks 150 | . . . . . . 150 . . . . . . . Disable Machine 420 | . 15 15 15 75 75 . . . 45 30 15 135 . Anti-Garrison Action 450 | . . . . . 400 . . . . . . . 50 Destroy Structure 461 | . 61 5 3 12 85 5 . 11 58 16 . 174 31 Partial Spotted 15 | . . . . 15 . . . . . . . . . Lose Combat Pursuer 195 | . . 15 15 . . . . 30 90 15 . 30 . Influence Decreases 7301 | 35 477 155 303 907 207 1166 439 314 656 911 656 731 344 Entered New Map 2931 | . 2 . . 68 147 744 439 . 23 623 526 165 194 Time Decay 3534 | 35 395 145 303 616 . 422 . 314 500 238 130 436 . Lost Part 293 | . 80 10 . . . . . . 33 10 . 10 150 Lost Ally 460 | . . . . 140 60 . . . 100 40 . 120 . Purge Threat 83 | . . . . 83 . . . . . . . . . Squads Dispatched 33 | . 3 1 2 5 . . . 4 4 . . 14 . Investigation 5 | . 2 1 . . . . . 1 1 . . . . Extermination 5 | . . . . . . . . 2 . . . 3 . Reinforcement 16 | . 1 . 2 2 . . . 1 3 . . 7 . Assault 3 | . . . . 2 . . . . . . . 1 . Garrison 4 | . . . . 1 . . . . . . . 3 . Intercept . | . . . . . . . . . . . . . . Searches Triggered . | . . . . . . . . . . . . . . Construction Impeded 4 | . . . . . . . . . 2 . . 2 . Haulers Reinforced 1 | . . . . . . . . . . . . 1 . Active Scanning Responses . | . . . . . . . . . . . . . . Cargo Convoy Interrupts . | . . . . . . . . . . . . . . Stealth | -11 -10 -10 -9 -9 -9 -9 -9 -6 -6 -6 -6 -6 -6 --------- Run | Yrd Mat Min Mat Sto Gar Rec Scr Fac Ext Cet Arc Hub Gar Distress Signals 16 | . . . 3 4 . . . 1 3 2 . 3 . Communications Jammed . | . . . . . . . . . . . . . . Distress Signals . | . . . . . . . . . . . . . . Times Spotted 230 | . 32 6 24 35 24 1 . 16 42 8 . 27 15 Peak Tracking Total 9 | . 7 3 4 4 5 1 . 4 9 5 . 8 7 Tactical Retreats 9 | . 2 1 1 . . . . 1 1 1 . 2 . Traps | -11 -10 -10 -9 -9 -9 -9 -9 -6 -6 -6 -6 -6 -6 ------- Run | Yrd Mat Min Mat Sto Gar Rec Scr Fac Ext Cet Arc Hub Gar Traps Triggered 19 | . 4 . . 2 11 . . . . . . . 2 Indirectly . | . . . . . . . . . . . . . . Trap Hack Attempts 38 | . . 32 . 6 . . . . . . . . . Triggered . | . . . . . . . . . . . . . . Disarmed . | . . . . . . . . . . . . . . Reprogrammed 2 | . . 1 . 1 . . . . . . . . . Reused . | . . . . . . . . . . . . . . Traps Extracted 2 | . . 1 . 1 . . . . . . . . . Installed . | . . . . . . . . . . . . . . Triggered . | . . . . . . . . . . . . . . Most Traps Carried 2 | . . 1 1 2 2 2 2 . . . . . . Machines | -11 -10 -10 -9 -9 -9 -9 -9 -6 -6 -6 -6 -6 -6 ---------- Run | Yrd Mat Min Mat Sto Gar Rec Scr Fac Ext Cet Arc Hub Gar Machines Disabled 39 | . 1 1 1 5 12 . . . 5 3 1 9 1 Max in Single Turn 9 | . 1 1 1 1 2 . . . 2 1 1 9 1 Garrison Relay 6 | . . . . . 5 . . . . . . . 1 Phase Generator 1 | . . . . . 1 . . . . . . . . Network Hub 2 | . . . . . . . . . . . . 2 . Energy Cycler 2 | . . . . . . . . . 2 . . . . Machines Repaired . | . . . . . . . . . . . . . . Machines Dismantled 2 | . . . . 1 . . . . . 1 . . . Machines Sabotaged . | . . . . . . . . . . . . . . Overloaded Fab Kills . | . . . . . . . . . . . . . . Hacking | -11 -10 -10 -9 -9 -9 -9 -9 -6 -6 -6 -6 -6 -6 --------- Run | Yrd Mat Min Mat Sto Gar Rec Scr Fac Ext Cet Arc Hub Gar Machines Accessed 63 | . 8 2 6 14 3 11 5 2 7 2 . 3 . Terminals 43 | . 6 . 6 12 3 6 . . 6 2 . 2 . Fabricators 1 | . . . . . . . . 1 . . . . . Repair Stations 1 | . 1 . . . . . . . . . . . . Recycling Units 8 | . 1 . . 1 . 5 . . 1 . . . . Scanalyzers 1 | . . . . . . . . 1 . . . . . Garrison Access 2 | . . . . 1 . . . . . . . 1 . Total Hacks 151 | . 22 2 15 35 5 22 19 8 13 2 . 8 . Successful 86 | . 13 2 7 15 3 9 19 6 7 1 . 4 . Failed 64 | . 9 . 8 20 2 12 . 2 6 1 . 4 . Catastrophic 19 | . 2 . 5 4 1 2 . . 1 1 . 3 . Database Lockouts 1 | . . . . . . 1 . . . . . . . Manual 46 | . 13 . 8 9 1 10 . 1 2 . . 2 . Terminals 100 | . 16 . 15 28 5 17 . . 12 2 . 5 . Fabricators 3 | . . . . . . . . 3 . . . . . Repair Stations 5 | . 5 . . . . . . . . . . . . Recycling Units 11 | . 1 . . 4 . 5 . . 1 . . . . Scanalyzers 5 | . . . . . . . . 5 . . . . . Garrison Access 6 | . . . . 3 . . . . . . . 3 . Terminal Hacks 56 | . 2 2 5 11 3 4 19 . 6 1 . 3 . Record 17 | . . . . . . . 16 . . 1 . . . Part Schematic 2 | . . . 1 . . 1 . . . . . . . Robot Schematic 1 | . . . . . . 1 . . . . . . . Robot Analysis 6 | . 1 . 1 1 . . 3 . . . . . . Prototype ID Bank 3 | . 1 . . 1 . . . . 1 . . . . Open Door 10 | . . 2 . 5 1 . . . 2 . . . . Branch Access Points 1 | . . . 1 . . . . . . . . . . Emergency Access Points 2 | . . . . . 1 . . . . . . 1 . Terminal Index 1 | . . . . . . . . . 1 . . . . Unreport Threat 1 | . . . . 1 . . . . . . . . . Locate Traps 5 | . . . 2 1 . . . . 1 . . 1 . Hauler Manifests 1 | . . . . . . 1 . . . . . . . Registered Components 2 | . . . . 1 . 1 . . . . . . . Zone Layout 3 | . . . . 1 . . . . 1 . . 1 . Patrol Navigation 1 | . . . . . 1 . . . . . . . . Fabricator Hacks 1 | . . . . . . . . 1 . . . . . Network Status 1 | . . . . . . . . 1 . . . . . Repair Station Hacks 4 | . 4 . . . . . . . . . . . . Scan Component 2 | . 2 . . . . . . . . . . . . Repair 2 | . 2 . . . . . . . . . . . . Recycling Unit Hacks 1 | . . . . 1 . . . . . . . . . Retrieve Components 1 | . . . . 1 . . . . . . . . . Scanalyzer 4 | . . . . . . . . 4 . . . . . Insert Component 1 | . . . . . . . . 1 . . . . . Analyze 3 | . . . . . . . . 3 . . . . . Garrison Access Hacks 2 | . . . . 1 . . . . . . . 1 . Unlock Access 2 | . . . . 1 . . . . . . . 1 . Unauthorized Hacks 18 | . 7 . 2 2 . 5 . 1 1 . . . . Terminals 9 | . 7 . 2 . . . . . . . . . . Operators 2 | . 1 . 1 . . . . . . . . . . Skim 7 | . 6 . 1 . . . . . . . . . . Fabricators 1 | . . . . . . . . 1 . . . . . Recompile 1 | . . . . . . . . 1 . . . . . Repair Stations . | . . . . . . . . . . . . . . Recycling Units 7 | . . . . 1 . 5 . . 1 . . . . Reject 1 | . . . . 1 . . . . . . . . . Tunnel 5 | . . . . . . 5 . . . . . . . Fedlink 1 | . . . . . . . . . 1 . . . . Scanalyzers . | . . . . . . . . . . . . . . Garrison Access 1 | . . . . 1 . . . . . . . . . Broadcast 1 | . . . . 1 . . . . . . . . . Data Cores Recovered . | . . . . . . . . . . . . . . Used . | . . . . . . . . . . . . . . Hacking Detections 39 | . 8 . 5 8 1 6 . 1 5 2 . 3 . Full Trace Events 1 | . . . . . . 1 . . . . . . . Feedback Events . | . . . . . . . . . . . . . . Feedback Blocked . | . . . . . . . . . . . . . . Robot Schematics Acquired 1 | . . . . . . 1 . . . . . . . Robots Built . | . . . . . . . . . . . . . . Authchips . | . . . . . . . . . . . . . . Time . | . . . . . . . . . . . . . . Total Robot Build Rating . | . . . . . . . . . . . . . . Part Schematics Acquired 3 | . . . 1 . . 1 . 1 . . . . . Parts Built . | . . . . . . . . . . . . . . Authchips . | . . . . . . . . . . . . . . Time . | . . . . . . . . . . . . . . Total Part Build Rating . | . . . . . . . . . . . . . . Parts Repaired 2 | . 2 . . . . . . . . . . . . Time 76 | . 76 . . . . . . . . . . . . Parts Recycled . | . . . . . . . . . . . . . . Recycled Matter . | . . . . . . . . . . . . . . Retrieved Matter . | . . . . . . . . . . . . . . Retrieved Components 10 | . . . . 10 . . . . . . . . . Parts Scanalyzed 1 | . . . . . . . . 1 . . . . . Part Schematics Acquired 1 | . . . . . . . . 1 . . . . . Parts Damaged . | . . . . . . . . . . . . . . Bothacking | -11 -10 -10 -9 -9 -9 -9 -9 -6 -6 -6 -6 -6 -6 ------------ Run | Yrd Mat Min Mat Sto Gar Rec Scr Fac Ext Cet Arc Hub Gar Used RIF Installer . | . . . . . . . . . . . . . . Robots Hacked 8 | . . . . 1 . . 2 . 2 . 3 . . Non-combat 1 | . . . . 1 . . . . . . . . . Combat 7 | . . . . . . . 2 . 2 . 3 . . Robot Hacks Applied 8 | . . . . 1 . . 2 . 2 . 3 . . parse_system 8 | . . . . 1 . . 2 . 2 . 3 . . Relay Couplers Released 25 | . . . . . 20 . . . . . . . 5 Machine Destruction 25 | . . . . . 20 . . . . . . . 5 Fabnet Peak Effective % . | . . . . . . . . . . . . . . Robots Rewired 20 | . . . . . 3 . . . 17 . . . . Allies Hacked 1 | . . . . . 1 . . . . . . . . Hacks Repelled . | . . . . . . . . . . . . . . Allies | -11 -10 -10 -9 -9 -9 -9 -9 -6 -6 -6 -6 -6 -6 -------- Run | Yrd Mat Min Mat Sto Gar Rec Scr Fac Ext Cet Arc Hub Gar Total Allies 37 | . . . . 12 4 . . . 21 . . . . Largest Group 17 | . . . . 10 3 3 2 2 17 11 9 9 . Highest-Rated Group 612 | . . . . 93 39 15 10 10 612 324 256 256 . Highest-Rated Ally 159 | . . . . 31 31 5 5 5 159 39 39 39 . Initial Warlord ECA Mod 24 | . . . . . . 12 12 . . . . . . Total Orders 5 | . . . . 2 . . . . 2 . . 1 . STAY 2 | . . . . 1 . . . . . . . 1 . FOLLOW 2 | . . . . 1 . . . . 1 . . . . GUARD 1 | . . . . . . . . . 1 . . . . Ally Attacks 353 | . . . . 103 24 6 . 9 155 31 . 25 . Total Damage 5671 | . . . . 1051 403 41 . 67 3085 613 . 411 . Kills 51 | . . . . 12 4 1 . . 26 3 . 5 . Allies Corrupted 2 | . . . . 1 . . . . . . . 1 . Allies Melted . | . . . . . . . . . . . . . . Intel | -11 -10 -10 -9 -9 -9 -9 -9 -6 -6 -6 -6 -6 -6 ------- Run | Yrd Mat Min Mat Sto Gar Rec Scr Fac Ext Cet Arc Hub Gar Active Infowar (turns) 5237 | 64 492 1 . . 187 . . 674 1500 501 267 1108 443 Optics 1 | . . 1 . . . . . . . . . . . IFF 141 | . . . . . . . . . . . . 141 . Seismic 743 | 64 492 . . . 187 . . . . . . . . Machine Analysis 4493 | . . . . . . . . 674 1500 501 267 1108 443 Robot Analysis Total 6 | . 1 . 1 1 . . 3 . . . . . . Derelict Logs Recovered 2 | . . 2 . . . . . . . . . . . Drone Launches . | . . . . . . . . . . . . . . Drone Recoveries . | . . . . . . . . . . . . . . Exploration | -11 -10 -10 -9 -9 -9 -9 -9 -6 -6 -6 -6 -6 -6 ------------- Run | Yrd Mat Min Mat Sto Gar Rec Scr Fac Ext Cet Arc Hub Gar Turns Passed 17836 | 198 1926 1393 1006 2135 1453 1035 3895 873 1500 501 267 1108 546 Spaces Moved 9760 | 137 1092 604 561 1029 745 669 2496 488 823 241 67 649 159 Core 2 | 2 . . . . . . . . . . . . . Treads . | . . . . . . . . . . . . . . Legs . | . . . . . . . . . . . . . . Wheels 9758 | 135 1092 604 561 1029 745 669 2496 488 823 241 67 649 159 Hover . | . . . . . . . . . . . . . . Flight . | . . . . . . . . . . . . . . Fastest Speed 50 | 50 80 140 135 135 150 150 135 120 130 130 132 130 130 Average Speed 141 | 79 123 140 141 148 150 150 149 134 135 140 132 132 138 Slowest Speed 200 | 80 200 140 155 155 150 150 150 135 150 145 132 146 145 Overloaded Moves . | . . . . . . . . . . . . . . Propulsion Burnouts . | . . . . . . . . . . . . . . Robots Hopped . | . . . . . . . . . . . . . . Potential Cave-ins . | . . . . . . . . . . . . . . Cave-ins Triggered . | . . . . . . . . . . . . . . Exploration Rate (%) 66 | 4 99 95 48 94 96 98 92 12 89 72 68 41 19 Regions Visited 13 Branch Regions 8 Pre-discovered Areas 10 | . 1 1 . . . 5 3 . . . . . . Known Exits Taken 5 | . 1 1 1 1 . . . . . . . 1 . Unknown Exits Taken 7 | 1 . . . . . 1 1 1 1 1 1 . . Scrap Searched 5 | . . 1 . . . . 4 . . . . . . Spaces Dug 38 | . 17 . . 4 5 . . 1 . . . 4 7 Terrain Destroyed 459 | . 90 5 1 9 81 4 . 10 34 12 . 202 11 Melee 17 | . . . . 3 5 . . . . . . 3 6 Projectile 67 | . 2 . 1 6 . 4 . 10 16 . . 23 5 AOE 375 | . 88 5 . . 76 . . . 18 12 . 176 . Terrain Rammed . | . . . . . . . . . . . . . . Walls Destroyed . | . . . . . . . . . . . . . . Machines Disabled . | . . . . . . . . . . . . . . Actions | -11 -10 -10 -9 -9 -9 -9 -9 -6 -6 -6 -6 -6 -6 --------- Run | Yrd Mat Min Mat Sto Gar Rec Scr Fac Ext Cet Arc Hub Gar Total 12715 | 180 1595 1133 698 1473 979 681 2650 593 1077 356 235 765 300 Wait 1586 | 1 388 445 40 254 58 1 119 12 50 28 152 35 3 Move 9748 | 136 1091 603 560 1028 744 668 2495 487 822 240 66 649 159 Hop . | . . . . . . . . . . . . . . Pick Up 174 | 10 31 12 20 26 . 1 10 18 19 18 2 5 2 Fast Attach 31 | 6 3 3 3 1 . . 3 3 5 1 . 3 . Attach 42 | 1 10 1 2 . 1 . . 4 6 6 . 2 9 Detach 4 | . 2 . . . . . . 1 . 1 . . . Swap 190 | . 21 14 14 26 11 . 7 12 26 13 3 22 21 Drop 168 | 1 10 12 25 32 2 1 14 13 25 19 2 5 7 Fire 486 | 25 39 11 34 72 53 10 . 42 72 10 5 40 73 Melee 42 | . . . . 4 5 . 2 1 . 11 5 4 10 Ram . | . . . . . . . . . . . . . . Kick . | . . . . . . . . . . . . . . Crush . | . . . . . . . . . . . . . . Escape Stasis 120 | . . . . 16 88 . . . . . . . 16 Rewire 69 | . . . . . 17 . . . 52 . . . . Trap 38 | . . 32 . 6 . . . . . . . . . Miscellaneous 17 | . . . . 8 . . . . . 9 . . . Route ------- -11/Scrapyard -10/Materials (discovered 6 exits: *Mat x3 / *Min x2 / *Sub) -10/Mines (discovered 3 exits: *Mat x2 / *Sub) -9/Materials (discovered 6 exits: [*Mat x2] / Min x2 / *Sto x2) -9/Storage (discovered 2 exits: [*Mat] / Gar) -9/Garrison (discovered 3 exits: *Rec x3) -9/Recycling (discovered 2 exits: [*Fac] / *Scr) -9/Scraptown (discovered 2 exits: *Fac x2) -6/Factory (discovered 2 exits: [*Low] / *Ext) -6/Extension (discovered 3 exits: [*Fac x2] / *Cet) -6/Cetus (discovered 2 exits: [*Fac] / [*Arc]) -6/Archives -6/Hub_04(d) (discovered 5 exits: [*Fac x4] / Gar) -6/Garrison History --------- Turn | Location | Event 25 | -11/Scrapyard | Discovered new exit (range 16) 199 | -11/Scrapyard | Entered Materials 301 | -10/Materials | Build established: Mutant 404 | -10/Materials | Discovered new exit (range 15) 564 | -10/Materials | Discovered new exit (range 16) 776 | -10/Materials | Discovered new exit (range 7) 780 | -10/Materials | Discovered new exit (range 13) 799 | -10/Materials | Derelicts attacked the area 924 | -10/Materials | Core integrity fell below 50% 954 | -10/Materials | Lost 3 parts (2n1w) 1055 | -10/Materials | Discovered new exit (range 9) 1240 | -10/Materials | Repaired Lgt. EM Pulse Cannon 1285 | -10/Materials | Repaired Corrupted Sub. Power Source 1370 | -10/Materials | Discovered new exit (range 15) 1464 | -10/Materials | Identified exit to Materials 1510 | -10/Materials | Learned 2 Storage zone layouts 1573 | -10/Materials | Identified exit to Mines 1648 | -10/Materials | Learned 2 Mines zone layouts 1725 | -10/Materials | Identified exit to Subcaves 1741 | -10/Materials | Learned Storage emergency access door positions 1775 | -10/Materials | Learned 4 Subcaves zone layouts 1837 | -10/Materials | Learned Storage trap positions 2013 | -10/Materials | Learned location of Mines (-9) 2125 | -10/Materials | Entered Mines 2216 | -10/Mines | Met a Derelict who couldn't figure out how to use a Trap Extractor 2925 | -10/Mines | Discovered exit to Materials (range 14) 2940 | -10/Mines | Met a Derelict shopkeep closing up shop 3095 | -10/Mines | Core integrity fell below 20% 3282 | -10/Mines | A weapon hastily lodged in a ceiling crevice suddenly fell to the ground 3518 | -10/Mines | Entered Materials 3518 | -9/Materials | Evolved 2 slots: Weapon x2 3519 | -9/Materials | Identified exit to Mines 3752 | -9/Materials | Identified exit to Storage 3797 | -9/Materials | Build established: Gunner 3860 | -9/Materials | Discovered new exit (range 15) 4262 | -9/Materials | Discovered new exit (range 4) 4524 | -9/Materials | Entered Storage 4526 | -9/Storage | Loaded intel: 20 trap records 4888 | -9/Storage | Assisted by bots powering up and referring to "LRC-V3" 5107 | -9/Storage | Identified exit to Garrison 5201 | -9/Storage | Build established: Commander-Gunner 5304 | -9/Storage | Garrison activated, responded to threat 5449 | -9/Storage | Discovered new exit (range 15) 5616 | -9/Storage | Lost 3 allies 5878 | -9/Storage | Build established: Gunner 6220 | -9/Storage | Met a pair of Derelict thieves 6525 | -9/Storage | Lost 3 allies 6659 | -9/Storage | Entered Garrison 6659 | -9/Garrison | Accompanied by 2 allies 6733 | -9/Garrison | Triggered checkpoint 6760 | -9/Garrison | Garrison Relay disabled 6913 | -9/Garrison | Triggered checkpoint 6920 | -9/Garrison | Triggered checkpoint 6937 | -9/Garrison | Triggered checkpoint 6938 | -9/Garrison | Core integrity fell below 50% 6957 | -9/Garrison | Triggered checkpoint 7053 | -9/Garrison | Discovered new exit (range 9) 7074 | -9/Garrison | Identified exit to Recycling 7116 | -9/Garrison | Triggered checkpoint 7191 | -9/Garrison | Garrison Relay disabled 7369 | -9/Garrison | Rescued a captive Derelict 7395 | -9/Garrison | Triggered checkpoint 7433 | -9/Garrison | Garrison Relay disabled 7459 | -9/Garrison | Phase Generator disabled 7489 | -9/Garrison | Discovered exit to Recycling (range 3) 7531 | -9/Garrison | Garrison Relay disabled 7765 | -9/Garrison | Discovered exit to Recycling (range 10) 7831 | -9/Garrison | Triggered checkpoint 7957 | -9/Garrison | Triggered checkpoint 7975 | -9/Garrison | Garrison Relay disabled 8112 | -9/Garrison | Entered Recycling 8112 | -9/Recycling | Accompanied by 3 allies 8580 | -9/Recycling | Discovered new exit (range 16) 9110 | -9/Recycling | Scanned before Scraplab entrance 9131 | -9/Recycling | Entered Scraplab 9143 | -9/Recycling | Discovered new exit (range 2) 9147 | -9/Recycling | Entered Scraptown 9147 | -9/Scraptown | Accompanied by 2 allies 9147 | -9/Scraptown | System corruption cleaned by C-Scrubber 9236 | -9/Scraptown | Heard Great Nut preacher, LISTEN AND RECITE! 9497 | -9/Scraptown | Discovered new exit (range 13) 9621 | -9/Scraptown | Visited CR-KLE's Repair Center 9648 | -9/Scraptown | Visited Assassins FH 9698 | -9/Scraptown | Visited Symbiants 9952 | -9/Scraptown | Visited Red Mages 10051 | -9/Scraptown | Visited Comm Corps 10119 | -9/Scraptown | Visited Cyclists 10180 | -9/Scraptown | Visited Fellowship of the Rings 10209 | -9/Scraptown | Visited UFD Registry 10227 | -9/Scraptown | Registered with UFD as "Gunnuts" 10273 | -9/Scraptown | Visited Botcube Research 10302 | -9/Scraptown | Visited Infowarlord's Domain 10326 | -9/Scraptown | Visited Junk Repository 10347 | -9/Scraptown | Visited Modified Component R&D 10389 | -9/Scraptown | Visited Scrap Suit Storage 10437 | -9/Scraptown | Visited Analyses Database 10488 | -9/Scraptown | Visited Supply Room 10521 | -9/Scraptown | Visited Chapter 10 10542 | -9/Scraptown | Visited Junk Cannon Lab 11434 | -9/Scraptown | Entered Cyclist Reading Room 11438 | -9/Scraptown | Learned location of Exiles (-9) 11438 | -9/Scraptown | Learned location of Zion (-6) 11618 | -9/Scraptown | Found Prototype Special Weapon 11618 | -9/Scraptown | Identified Junk Cannon 11877 | -9/Scraptown | Found Exp. Terrain Scan Processor 12491 | -9/Scraptown | CR-KLE repaired 7 parts 12964 | -9/Scraptown | Met Optimus 12964 | -9/Scraptown | Accepted into 0bPrime 13039 | -9/Scraptown | Discovered new exit (range 3) 13042 | -9/Scraptown | Entered Factory 13042 | -6/Factory | Accompanied by 2 allies 13042 | -6/Factory | Evolved 6 slots: Propulsion x2, Utility x3, Weapon x1 13474 | -6/Factory | Discovered new exit (range 6) 13532 | -6/Factory | Build established: Hauler-Skirmisher 13688 | -6/Factory | Discovered new exit (range 15) 13915 | -6/Factory | Entered Extension 14075 | -6/Extension | Rescued A7 14155 | -6/Extension | Rescued a captive Derelict 14185 | -6/Extension | Energy Cycler disabled 14185 | -6/Extension | Rescued a captive Derelict 14185 | -6/Extension | Rescued a captive Derelict 14185 | -6/Extension | Rescued a captive Derelict 14185 | -6/Extension | Rescued a captive Derelict 14186 | -6/Extension | Rescued a captive Derelict 14187 | -6/Extension | Rescued a captive Derelict 14188 | -6/Extension | Rescued a captive Derelict 14189 | -6/Extension | Rescued a captive Derelict 14191 | -6/Extension | Rescued a captive Derelict 14370 | -6/Extension | Lost 3 allies 14494 | -6/Extension | Build established: Commander-Skirmisher 14665 | -6/Extension | Spotted B-75 Beast 14681 | -6/Extension | Allies destroyed B-75 Beast 14681 | -6/Extension | Spotted B-75 Beast 14691 | -6/Extension | Destroyed B-75 Beast 14697 | -6/Extension | Discovered new exit (range 15) 14915 | -6/Extension | Disrupted transfer network 15180 | -6/Extension | Loaded intel: 1 recycling unit location 15275 | -6/Extension | Disrupted transfer network 15290 | -6/Extension | Discovered new exit (range 10) 15307 | -6/Extension | Destroyed 8 combat bots 15310 | -6/Extension | Extracted ID and sensor layout for unrecognized location from A7's data core 15310 | -6/Extension | Discovered new exit (range 7) 15415 | -6/Extension | Entered Cetus 15415 | -6/Cetus | Accompanied by 11 allies 15439 | -6/Cetus | Spotted Cetus Guard 15439 | -6/Cetus | Spotted Cetus Guard 15442 | -6/Cetus | Spotted Cetus Guard 15446 | -6/Cetus | Destroyed Cetus Guard 15447 | -6/Cetus | Destroyed Cetus Guard 15447 | -6/Cetus | Allies destroyed Cetus Guard 15454 | -6/Cetus | Spotted Cetus Guard 15473 | -6/Cetus | Allies destroyed Cetus Guard 15587 | -6/Cetus | Cetus Manufacturing Module disabled 15648 | -6/Cetus | Found a strange terminal 15718 | -6/Cetus | Discovered new exit (range 15) 15753 | -6/Cetus | Spotted Cetus Guard 15754 | -6/Cetus | Spotted Cetus Guard 15758 | -6/Cetus | Spotted Cetus Guard 15759 | -6/Cetus | Destroyed Cetus Guard 15759 | -6/Cetus | Spotted Cetus Guard 15762 | -6/Cetus | Destroyed Cetus Guard 15762 | -6/Cetus | Destroyed Cetus Guard 15768 | -6/Cetus | Allies destroyed Cetus Guard 15776 | -6/Cetus | Discovered new exit (range 16) 15785 | -6/Cetus | Met Revision 17 15916 | -6/Cetus | Entered Archives 15916 | -6/Archives | Accompanied by 9 allies 16029 | -6/Archives | Build established: Scavenger-Tank 16128 | -6/Archives | Met Zhirov 16134 | -6/Archives | Reinforcements dispatched to Archives 16145 | -6/Archives | Discovered new exit (range 16) 16179 | -6/Archives | Reinforcements dispatched to Archives 16183 | -6/Archives | Entered Hub_04(d) 16183 | -6/Hub_04(d) | Accompanied by 9 allies 16263 | -6/Hub_04(d) | Discovered new exit (range 5) 16510 | -6/Hub_04(d) | Lost 5 allies 16644 | -6/Hub_04(d) | Discovered new exit (range 9) 16700 | -6/Hub_04(d) | Discovered new exit (range 8) 16935 | -6/Hub_04(d) | Discovered new exit (range 10) 17100 | -6/Hub_04(d) | Network Hub disabled 17125 | -6/Hub_04(d) | System corruption reached 10% 17141 | -6/Hub_04(d) | Core integrity fell below 50% 17154 | -6/Hub_04(d) | Network Hub disabled 17233 | -6/Hub_04(d) | First assault squad dispatched 17291 | -6/Hub_04(d) | Identified exit to Garrison 17291 | -6/Hub_04(d) | Entered Garrison 17331 | -6/Garrison | Triggered checkpoint 17557 | -6/Garrison | Garrison Relay disabled 17728 | -6/Garrison | Spotted B-75 Beast 17784 | -6/Garrison | Destroyed B-75 Beast 17797 | -6/Garrison | System corruption reached 30% 17823 | -6/Garrison | Core integrity fell below 20% 17838 | -6/Garrison | Core destroyed Last Messages --------------- 17825_ Quantum Reactor destroyed. 17825_ Integrated Corrupted Quantum Reactor (+8). 17826_ Power failure averted by Imp. Cryofiber Web. 17826_ Overheating: Gatling Laser damaged (-39). 17826_ System corrupted: Substantial component data lost. 17828_ Power failure averted by Imp. Cryofiber Web. 17828_ Overheating: Gatling Laser damaged (-4). 17828_ Internal heat damage averted by Imp. Cryofiber Web. 17828_ G-50 Soldier destroyed. 17828_ Gatling Laser destroyed. 17830_ Overheating: System interference. 17830_ Imp. Cooling System temporarily disabled. 17830_ System interference averted by Imp. Cryofiber Web. 17830_ Gatling Laser temporarily disabled. 17830_ Phase Cannon destroyed. 17833_ Power failure averted by Imp. Cryofiber Web. 17833_ Energy bleed averted by Imp. Cryofiber Web. 17836_ Power failure averted by Imp. Cryofiber Web. 17836_ Overheating: Matter decay (-20). 17838_ Overheating: Core damaged (-161). Map ----- +----------------------------------------------------+ | ?###??????#[ #[#?????????????????????????????????? | | ##"##?????#### #?????????????????????????????????? | | # ########## #?????????????????????????????????? | | " " #?????????????????????????????????? | | # ########## #?????????????????????????????????? | | # #???????##%##??#######???????????????????????? | | # #???????#=*=#??#"" ""#???????????????????????? | | # #??######%==#####!!!#####????????????????????? | | # #??# * ^ !! " #????????????????????? | | # #??# ###????????????????????? | | # #??#^^###############;#??????????????????????? | | # #??# ??????????????# #??????????????????????? | | # #??# ###############;#??????????????????????? | | # ? ##?????????????????????? | | # ? "#?????????????????????? | | # ? #??????????????????????? | | #####?????############# #??????????????????????? | | ??????????????????????# #??????????????????????? | | ??????????????????????# #??????????????????????? | | ??????????????????????# #??????????????????????? | | ??????????????????????# #??????????????????????? | | ??????????????????????# #??????????????????????? | | ??????????????????????# #??????????????????????? | | ??????????????????????# #??????????????????????? | | ??????????????????????#%*%############???????????? | | ??????????????????????#!%@g=! #???????????? | | ??????????????????????#%/!%%% #???????????? | | ??????????????????????# /!### ##### #???????????? | | ??????????????????????# #?# #???# #???????????? | | ??????????????????????# % #?# #???# #???????????? | | ??????????????????????#%!%#?# #???# #???????????? | | ??????????????????????# %%#?# #???# #???????????? | | ??????????????????????# !%#?# #???# #???????????? | | ??????????????????????#==%;###########???????????? | | ??????????????????????# %*= ???????? | | ??????????????????????#== ???????? | | ??????????????????????# % ???????? | | ??????????????????????#######+#### ## ????????? | | ????????????????????????????? #??????#???????????? | | ?????????????????????????????? ??????????????????? | | ???????????????????????????????#?????????????????? | | ?????????????????????????????????????????????????? | | ?????????????????????????????????????????????????? | | ?????????????????????????????????????????????????? | | ?????????????????????????????????????????????????? | | ?????????????????????????????????????????????????? | | ?????????????????????????????????????????????????? | | ?????????????????????????????????????????????????? | | ?????????????????????????????????????????????????? | | ?????????????????????????????????????????????????? | +----------------------------------------------------+ Best States ------------- Heat Dissipation 102 Coolant Potential 50 Energy Generation 25 Energy Capacity 350 Matter Stores 300 Matter Capacity 300 Sight Range 16 Terrain Scan Density 10 Base Temperature (-) 150 Armor Coverage 450 Evasion (%) 44 Offensive Hacking 12 Authchip Count 5 Trap Extractor Capacity 6 Item Schematics ----------------- Heat Sink | -9/Materials | Hacked Wheel | -9/Recycling | Hacked Ovr. Huge Scrapsphere | -6/Factory | Scanalyzed Robot Schematics ------------------ S-10 Pest | -9/Recycling | Hacked Fabricated ------------ Nothing Repaired ---------- Lgt. EM Pulse Cannon | 7% | -10/Materials Sub. Power Source | 90% | -10/Materials | Corrupted Alien Tech Used ----------------- None Achievements -------------- None Challenges ------------ None Game ------ Seed RelayDiametricCleaver Manual? 0 Play Time 02:13:30 Cumulative 1256.1 hours Start 2025.08.16 @ 20:39:36 End 2025.08.16 @ 23:51:19 Sessions 3 Manual Loads 0 Difficulty Rogue Special Mode None Game No. 598 Rogue 598 Adventurer 0 Explorer 0 Win Type - Total 23 Types 10/4/3/0/1/1/2/2/0/0 Lore% 91 Gallery% 90 Achievement% 84 Wizard Run 0 Options --------- Layout 0 ASCII 0 Keyboard 0 Movement Numpad Keybinds 0 Fullscreen 2 Font 24/Smallcaps Map View 76x50 Zoom Use 0% Tactical HUD 1 Map Filters NONE Filters SHIFT_HUE(315) Steam 1 RUN: 09438873-99ce-4b0a-a0df-35b41f7fdcde